[Event "44th Chess Olympiad Women 2022"]
[Site "Chennai"]
[Date "2022.08.01"]
[Round "4.1"]
[White "Vaishali R"]
[Black "Lazarne Vajda, Szidonia"]
[Result "1/2-1/2"]
[WhiteElo "2442"]
[BlackElo "2313"]
[Annotator "TA"]
[PlyCount "69"]
[EventDate "2022.??.??"]
[TimeControl "60"]

{[%evp 9,69,8,22,-2,0,0,-13,-10,11,-32,-32,-36,-35,-35,-35,-39,-27,-36,-6,0,
-11,-34,-19,-24,-13,-24,-30,-47,-21,-25,0,0,0,-7,-7,-8,0,-4,0,-8,-5,-5,-7,-5,
-5,-6,0,-7,9,5,15,0,0,-45,0,-3,0,0,0,0,0,0]} 1. d4 {[%emt 0:00:38]} d5 {
[%emt 0:01:26]} 2. Bf4 {[%emt 0:00:30]} Nf6 {[%emt 0:01:58]} 3. e3 {[%emt 0:00:
00]} c5 {[%emt 0:01:28]} 4. Nf3 {[%emt 0:00:18]} e6 {[%emt 0:02:43]} 5. Nbd2 {
[%emt 0:02:03]} Bd6 {[%emt 0:01:26]} 6. c3 {[%emt 0:01:43] D02:1 d4 d5 2 Nf3
sidelines, including 2...Nf6 3 g3 and 2...Nf6 3 Bf4.} cxd4 {[%emt 0:08:11]} 7.
cxd4 {[%emt 0:02:03]} Bxf4 {[%emt 0:06:27]} 8. exf4 {[%emt 0:00:09]} Nc6 {
[%emt 0:00:30]} 9. Bb5 {[%emt 0:17:55]} Bd7 {[%emt 0:06:56]} 10. O-O {[%emt 0:
00:00] [#]} Qb6 $146 {[%emt 0:05:09]} ({Predecessor:} 10... O-O 11. Nb3 Ne4 12.
Rc1 Rc8 13. Nc5 Nxc5 14. Rxc5 Na5 15. Bxd7 Rxc5 16. dxc5 Qxd7 17. b4 Nc4 18.
Ne5 Nxe5 19. fxe5 Rc8 20. Qb3 {½-½ (20) Ponikarovsky,A (2378)-Anjuhin,A 
(2346) St Petersburg 2008}) 11. Bxc6 {[%emt 0:04:35]} Bxc6 {[%emt 0:00:37]} 12.
Qb3 $1 {[%emt 0:02:16]} O-O {[%emt 0:02:29]} 13. Rfc1 {[%emt 0:13:58]} Ne4 {
[%emt 0:08:38] aiming for ...Nxd2.} 14. Qxb6 {[%emt 0:05:51]} axb6 {[%emt 0:00:
00]} 15. Nf1 {[%emt 0:00:34]} f6 {[%emt 0:07:14]} 16. Ne3 {[%emt 0:01:30]} Nd6
{[%emt 0:01:03]} 17. a3 {[%emt 0:11:02]} Rfc8 {[%emt 0:02:44]} 18. g4 {[%emt 0:
00:00]} Nc4 {[%emt 0:05:59]} 19. Rc2 {[%emt 0:05:12]} Nxe3 {[%emt 0:06:40]} 20.
fxe3 {[%emt 0:00:04]} Ba4 {[%emt 0:00:25]} 21. Rd2 {[%emt 0:07:18]} Bc2 {
[%emt 0:04:21]} 22. Kf2 {[%emt 0:09:08]} Be4 {[%emt 0:01:22]} 23. Ng1 {[%emt 0:
00:00]} b5 {[%emt 0:02:48]} 24. Re1 {[%emt 0:01:03]} b4 {[%emt 0:01:57]} 25.
axb4 {[%emt 0:00:05]} Rc4 {[%emt 0:00:42]} 26. Ne2 {[%emt 0:00:33]} Rxb4 {
[%emt 0:00:33]} 27. Nc3 {[%emt 0:02:40] Prevents Ra2.} f5 {[%emt 0:02:31]} 28.
Nxe4 {[%emt 0:02:31]} fxe4 $11 {[%emt 0:00:11] Endgame KRR-KRR} 29. Rc1 {
[%emt 0:00:03]} Ra2 {[%emt 0:03:37]} 30. Rcc2 {[%emt 0:01:49]} Kf7 {[%emt 0:00:
58]} 31. h3 {[%emt 0:00:52]} Rb3 {[%emt 0:03:01]} 32. Rc7+ {[%emt 0:00:00] The
position is equal.} Kf6 {[%emt 0:00:24]} 33. g5+ {[%emt 0:02:20]} Kg6 {[%emt 0:
00:05]} 34. Re7 {[%emt 0:00:05]} Rbxb2 {[%emt 0:02:29]} 35. Rxb2 {[%emt 0:01:
57] Weighted Error Value: White=0.07 (flawless) /Black=0.08 (flawless)} 1/2-1/2

[Event "44th Chess Olympiad Women 2022"]
[Site "Chennai"]
[Date "2022.08.01"]
[Round "4.2"]
[White "Krasteva, Beloslava"]
[Black "Ushenina, Anna"]
[Result "0-1"]
[WhiteElo "2249"]
[BlackElo "2423"]
[Annotator "TA"]
[PlyCount "158"]
[EventDate "2022.??.??"]
[TimeControl "60"]

{[%evp 9,158,0,18,5,17,3,52,20,56,52,55,50,62,32,50,50,60,38,35,43,35,41,53,55,
62,54,76,62,76,78,75,73,77,67,68,70,76,74,62,64,78,38,36,12,13,0,0,0,0,-21,-32,
-63,-56,-58,-50,-75,-74,-96,-96,-79,-79,-72,-76,-99,-70,-73,-60,-100,-95,-97,
-85,-86,-8,-53,-55,-64,-52,-53,-28,-34,-42,-108,-109,-106,-8,-8,-8,-8,-8,-8,-8,
-65,0,0,0,-31,-9,-8,0,0,0,0,0,0,0,0,0,0,0,-8,-8,-29,-38,-152,-152,-29962,-8,-8,
-8,-8,-12,-29976,-29977,-29977,-29978,-29979,-29980,-29980,-29980,-29980,
-29981,-29981,-29981,-29981,-29982,-29982,-29982,-29982,-29983,-29982,-29982,
-29982,-29983,-29983,-29984,-29984,-29984,-29984,-29985,-29986,-29987]} 1. d4 {
[%emt 0:00:07]} d5 {[%emt 0:00:44]} 2. Nf3 {[%emt 0:00:12]} Nf6 {[%emt 0:00:24]
} 3. Bf4 {[%emt 0:00:16]} c5 {[%emt 0:05:41]} 4. e3 {[%emt 0:00:14]} Nc6 {
[%emt 0:03:14]} 5. Nbd2 {[%emt 0:00:30]} cxd4 {[%emt 0:06:20]} 6. exd4 {
[%emt 0:00:24] D02:1 d4 d5 2 Nf3 sidelines, including 2...Nf6 3 g3 and 2...
Nf6 3 Bf4.} Bf5 {[%emt 0:00:11]} 7. Bb5 {[%emt 0:01:47]} Bd7 {[%emt 0:23:38] 
[#]} (7... Rc8 $11) 8. Nb3 $146 {[%emt 0:17:22] White is slightly better.} ({
Predecessor:} 8. c3 a6 9. Bd3 Bg4 10. Qb3 Na5 11. Qc2 e6 12. Ne5 Nc6 13. Qb3
Nxe5 14. dxe5 {½-½ (93) Praggnanandhaa,R (2608)-Kobalia,M (2587) Chess.com
INT 2021}) 8... g6 {[%emt 0:11:38]} 9. O-O {[%emt 0:03:22]} Bg7 {[%emt 0:00:11]
} 10. Re1 {[%emt 0:05:49]} a6 {[%emt 0:03:28]} 11. Bd3 {[%emt 0:04:11]} O-O {
[%emt 0:01:44]} 12. c3 {[%emt 0:04:55]} Nh5 {[%emt 0:04:01]} 13. Bd2 {[%emt 0:
00:00]} Qc7 {[%emt 0:00:40]} 14. Nc5 {[%emt 0:05:03][%cal Yb3c5,Yc5d3,Yd3e5]}
Bc8 {[%emt 0:05:29]} 15. Bf1 {[%emt 0:02:12]} b6 {[%emt 0:11:03]} 16. Nd3 {
[%emt 0:01:10]} Na5 {[%emt 0:04:11]} 17. b3 {[%emt 0:03:05]} Nc6 {[%emt 0:02:
31]} 18. Rc1 {[%emt 0:02:15]} Rd8 {[%emt 0:02:35]} 19. Nfe5 {[%emt 0:04:00]}
Nxe5 {[%emt 0:03:59]} 20. Nxe5 {[%emt 0:00:50]} b5 {[%emt 0:00:00]} 21. Qf3 {
[%emt 0:08:09]} Be6 {[%emt 0:01:17]} 22. Nd3 {[%emt 0:03:34]} Nf6 {[%emt 0:00:
30][%cal Yh5f6,Yf6d7,Yd7c5]} 23. Bf4 {[%emt 0:02:43]} Qa7 {[%emt 0:00:39]} 24.
Nc5 {[%emt 0:01:07] Prevents Ne4.} Bf5 {[%emt 0:00:07]} 25. Qe3 {[%emt 0:08:34]
} Re8 {[%emt 0:00:40]} 26. f3 {[%emt 0:00:45]} Nd7 $1 {[%emt 0:01:11]} 27. g4 {
[%emt 0:03:11]} Nxc5 {[%emt 0:00:02]} 28. gxf5 {[%emt 0:00:07]} Nd7 {[%emt 0:
00:09]} 29. fxg6 {[%emt 0:00:26]} hxg6 {[%emt 0:00:00]} 30. Bg3 {[%emt 0:02:57]
} Rac8 {[%emt 0:01:26][%cal Yc8c3]} 31. Kh1 {[%emt 0:00:48]} e6 {[%emt 0:01:01]
} 32. Bf2 {[%emt 0:06:22]} Nf6 {[%emt 0:00:00]} 33. c4 {[%emt 0:01:07]} bxc4 {
[%emt 0:00:06]} 34. bxc4 {[%emt 0:00:05]} dxc4 {[%emt 0:00:06]} 35. Bxc4 {
[%emt 0:00:51]} Qa8 {[%emt 0:00:29]} 36. Bg3 {[%emt 0:02:51]} Rc6 {[%emt 0:00:
57]} 37. Bb3 {[%emt 0:01:31]} Rec8 {[%emt 0:00:00] White must now prevent ...
Rxc1.} 38. Rxc6 {[%emt 0:00:39]} Qxc6 {[%emt 0:00:00]} 39. Be5 {[%emt 0:01:03]}
Nd5 {[%emt 0:01:24]} 40. Qe4 {[%emt 0:00:30]} Bxe5 {[%emt 0:00:49]} (40... Rd8
$17) 41. dxe5 {[%emt 0:01:54]} (41. Bxd5 $5 exd5 42. Qxe5 $15) 41... Qc3 {
[%emt 0:01:59]} 42. Bxd5 {[%emt 0:06:27]} exd5 $15 {[%emt 0:02:06] Endgame
KQR-KQR} 43. Qe2 {[%emt 0:00:49]} Rc6 {[%emt 0:05:33]} 44. Rd1 {[%emt 0:01:17]}
Rb6 {[%emt 0:03:25]} 45. Qd3 {[%emt 0:00:00]} (45. Rxd5 $15 Rb2 46. Rd3) 45...
Qxe5 $17 {[%emt 0:02:06] Strongly threatening ...Rb2.} 46. Qxd5 {[%emt 0:00:08]
} Qxd5 {[%emt 0:00:49] Active counter play!} ({Black should play} 46... Qf4 $17
{( -> ...Rb2)} 47. Qe4 Qxe4 48. fxe4 Rb2) 47. Rxd5 {[%emt 0:00:01] KR-KR} Rb1+
{[%emt 0:00:07]} 48. Kg2 {[%emt 0:00:04]} Rb2+ {[%emt 0:00:03]} 49. Kg3 {
[%emt 0:00:10]} Rxa2 {[%emt 0:00:00] And now ...a5 would win.} 50. h4 {[%emt 0:
00:33]} Rb2 {[%emt 0:04:59]} ({Black should try} 50... Kg7 $15) 51. h5 $1 $11 {
[%emt 0:01:23]} gxh5 {[%emt 0:00:00] ...Rb5 is the strong threat.} 52. Rxh5 {
[%emt 0:00:10]} Rb5 {[%emt 0:00:00]} 53. Rh6 {[%emt 0:00:35]} a5 {[%emt 0:00:
19]} 54. Ra6 {[%emt 0:00:49]} Kf8 {[%emt 0:01:54]} 55. Kf4 {[%emt 0:03:28]} f5
{[%emt 0:09:43]} 56. Ke3 {[%emt 0:00:00]} Rd5 {[%emt 0:00:10]} 57. Kf4 {
[%emt 0:06:57]} Ke7 {[%emt 0:00:10]} 58. Kg5 {[%emt 0:01:44]} Kd7 {[%emt 0:00:
09]} 59. f4 $1 {[%emt 0:00:10]} Kc7 {[%emt 0:00:23]} 60. Re6 {[%emt 0:00:43]}
Kb7 {[%emt 0:02:10]} 61. Re5 {[%emt 0:00:00]} (61. Re1 $15) 61... Kc6 $17 {
[%emt 0:00:37]} 62. Re8 $2 {[%emt 0:00:42] [#]} (62. Rxd5 {gets mated.} Kxd5
63. Kxf5 a4 64. Kg6 a3 65. f5 a2 66. f6 a1=Q 67. f7 Qh8 68. Kf5 Qg7 69. Kf4 Kd4
70. f8=B Qxf8+ 71. Kg5 Ke5 72. Kh4 Qf3 73. Kg5 Qg2+ 74. Kh6 Kf6 75. Kh7 Qg7#) (
62. Kg6 $17) 62... a4 $2 {[%emt 0:01:10]} (62... Kb5 {mates} 63. Kf6 a4 64. Re1
Kb4 65. Rb1+ Kc3 66. Rh1 a3 67. Rh3+ Kb4 68. Rh7 Ra5 69. Rh5 a2 70. Rh1 Kc3 71.
Rh3+ Kd4 72. Rh1 a1=Q 73. Rxa1 Rxa1 74. Kxf5 Ra6 75. Kg5 Ke4 76. f5 Ra5 77. Kf6
Re5 78. Kg5 Rxf5+ 79. Kg4 Rf4+ 80. Kg5 Kf3 81. Kh5 Rg4 82. Kh6 Kf4 83. Kh5 Kf5
84. Kh6 Kf6 85. Kh7 Ra4 86. Kh8 Kf7 87. Kh7 Rh4#) 63. Ra8 $11 {[%emt 0:00:14]}
Kb5 {[%emt 0:00:07]} 64. Kf6 {[%emt 0:00:00]} Kb4 {[%emt 0:00:19]} 65. Ke6 $2 {
[%emt 0:00:29] Black converts the advantage convincingly.} (65. Rb8+ $11 Rb5
66. Rg8) 65... Rb5 {[%emt 0:02:37] Black mates.} 66. Rh8 {[%emt 0:00:40]} a3 {
[%emt 0:00:04][%cal Ya4a3,Ya3a2]} 67. Rh3 {[%emt 0:00:31]} a2 {[%emt 0:00:46]}
68. Rh1 {[%emt 0:00:04]} Ka3 {[%emt 0:00:32]} 69. Rd1 {[%emt 0:00:58]} Kb2 {
[%emt 0:00:00]} 70. Rd2+ {[%emt 0:00:17]} Kb1 {[%emt 0:00:23]} 71. Rd1+ {
[%emt 0:00:09] [#]} Kc2 $1 {[%emt 0:00:06]} 72. Rh1 {[%emt 0:00:22]} Rc5 {
[%emt 0:00:19]} 73. Kd6 {[%emt 0:00:33]} Ra5 {[%emt 0:00:52]} 74. Ke6 {[%emt 0:
00:06]} Kd3 {[%emt 0:00:42]} 75. Ra1 {[%emt 0:01:00]} Ke4 {[%emt 0:00:06]} 76.
Kd6 {[%emt 0:00:00]} Kxf4 {[%emt 0:00:08]} 77. Kc6 {[%emt 0:00:12]} Ke3 {
[%emt 0:00:16]} 78. Kb6 {[%emt 0:00:04]} Ra8 {[%emt 0:00:06]} 79. Kc5 {[%emt 0:
00:09]} f4 {[%emt 0:00:00] Weighted Error Value: White=0.10 (very precise) /
Black=0.14 (very precise)} 0-1

[Event "44th Chess Olympiad Women 2022"]
[Site "Chennai"]
[Date "2022.08.01"]
[Round "4.2"]
[White "Muzychuk, Anna"]
[Black "Peycheva, Gergana"]
[Result "1-0"]
[WhiteElo "2529"]
[BlackElo "2295"]
[Annotator "TA"]
[PlyCount "91"]
[EventDate "2022.??.??"]
[TimeControl "60"]

{[%evp 13,91,0,26,22,26,28,35,16,32,-13,18,19,32,31,38,32,83,71,81,73,81,86,
124,48,72,22,49,0,0,0,0,0,0,0,0,0,0,0,150,152,365,348,337,189,204,192,176,53,
54,0,0,-365,0,0,341,297,337,329,331,283,263,0,291,302,610,604,597,591,586,578,
673,647,711,740,1331,1248,5139,5122,29980,1058]} 1. e4 {[%emt 0:00:04]} e6 {
[%emt 0:00:08]} 2. d4 {[%emt 0:00:06]} d5 {[%emt 0:00:09]} 3. Nc3 {[%emt 0:00:
00]} Nf6 {[%emt 0:00:29]} 4. e5 {[%emt 0:01:16]} Nfd7 {[%emt 0:00:50]} 5. f4 {
[%emt 0:00:04]} c5 {[%emt 0:00:42]} 6. Nf3 {[%emt 0:00:05]} Nc6 {[%emt 0:01:16]
} 7. Be3 {[%emt 0:01:08]} a6 {[%emt 0:02:29]} 8. Ne2 {[%emt 0:02:55] C11:
French: Classical System: 4 e5 and 4 Bg5 dxe4.} b5 {[%emt 0:17:16]} 9. c3 {
[%emt 0:00:18]} Bb7 {[%emt 0:03:05] [#]} 10. g4 $146 {[%emt 0:11:06] White is
slightly better.} ({Predecessor:} 10. g3 Be7 11. Bg2 Qc7 12. O-O O-O-O 13. a4
b4 14. dxc5 Nxc5 15. cxb4 Nxb4 16. Nfd4 {1-0 (36) Rodchenkov,S (2346)-Kozina,A
(2117) Chess.com INT 2022}) 10... Qb6 {[%emt 0:11:43]} 11. Ng3 {[%emt 0:12:12]}
Be7 {[%emt 0:05:03]} 12. Bd3 {[%emt 0:02:40]} O-O-O {[%emt 0:03:30]} 13. O-O {
[%emt 0:02:23]} Kb8 {[%emt 0:04:59]} 14. Qd2 {[%emt 0:01:37]} h6 {[%emt 0:00:
00] Prevents Ng5.} (14... f6 $14) 15. f5 $16 {[%emt 0:04:22]} Rdf8 {[%emt 0:00:
00]} 16. Rf2 {[%emt 0:08:57] White is more active.} cxd4 {[%emt 0:04:45]} 17.
cxd4 {[%emt 0:03:05]} Bd8 {[%emt 0:03:40]} 18. Raf1 {[%emt 0:12:39]} (18. b3
$16) 18... Qa7 $14 {[%emt 0:03:24]} 19. fxe6 {[%emt 0:06:46]} ({White should
play} 19. Ne2 $16) 19... fxe6 $11 {[%emt 0:00:27]} 20. Nh5 {[%emt 0:00:50]} (
20. Bg6 $14) 20... Bb6 {[%emt 0:03:27][%cal Rc6d4]} 21. Bb1 $1 {[%emt 0:04:27]}
Rxf3 {[%emt 0:02:44]} 22. Rxf3 {[%emt 0:00:07] Black must now prevent Kg2.}
Nxd4 {[%emt 0:00:09]} 23. Rf7 {[%emt 0:05:17]} Nxe5 {[%emt 0:03:06]} 24. Rf8+ {
[%emt 0:00:16]} Rxf8 {[%emt 0:00:04]} 25. Rxf8+ {[%emt 0:00:02]} Kc7 {[%emt 0:
00:00]} (25... Bc8 $11 26. Kg2 Nc4) 26. Kg2 $16 {[%emt 0:01:31]} ({Inferior is
} 26. Qc3+ Ndc6 27. Bxb6+ Qxb6+ 28. Rf2 g5 $15) 26... Nc4 $2 {[%emt 0:05:48]} (
26... Ndf3 $16 27. Rxf3 Bxe3 28. Qxe3 Qxe3 29. Rxe3 d4+ 30. Re4 d3) 27. Qf2 $18
{[%emt 0:04:12] [#] Threatens to win with Qf7+.} Bc5 {[%emt 0:03:37]} 28. Qf7+
{[%emt 0:04:03]} ({Weaker is} 28. Nxg7 Nxe3+ 29. Qxe3 Bxf8 $17) (28. Rg8 $142)
28... Kb6 {[%emt 0:00:42]} 29. Bxd4 {[%emt 0:00:36]} Bxd4 {[%emt 0:00:04]} 30.
Qxe6+ {[%emt 0:00:17]} (30. Nxg7 $18 Bxb2 31. Nxe6) 30... Ka5 $14 {[%emt 0:00:
00] And now ...Be5 would win.} 31. Nf4 {[%emt 0:01:50]} (31. Qe1+ $1 $14 b4 32.
a3) 31... Bxb2 $11 {[%emt 0:01:56] This bishop pair is nice.} 32. Rf7 $2 {
[%emt 0:02:41]} (32. Nd3 $1 $11 {and White is okay.} Qe3 33. Qxe3 Nxe3+ 34. Kf3
d4+ 35. Ke2) 32... Qd4 $2 {[%emt 0:01:43]} ({Better is} 32... Be5 $19 33. Nd3 {
[#]} Qe3 $1 34. Nxe5 (34. Rxb7 {is a self mate.} Qe2+ 35. Nf2 Ne3+ 36. Kh3 Qf3+
37. Kh4 Ng2+ 38. Kh5 Nf4+ 39. Kh4 Qxf2#) 34... Nxe5) 33. Nd3 $1 $36 {[%emt 0:
04:09] White fights for an advantage.} Bc8 {[%emt 0:00:00]} 34. Qxc8 $18 {
[%emt 0:00:52] The board is on fire.} Qe4+ {[%emt 0:00:22]} 35. Rf3 {[%emt 0:
02:37]} Qe2+ {[%emt 0:00:39]} 36. Rf2 {[%emt 0:01:27]} Qe4+ {[%emt 0:00:23]}
37. Rf3 {[%emt 0:00:35]} Qe2+ {[%emt 0:00:00]} 38. Kg3 {[%emt 0:01:00] Hoping
for Qc7+.} Be5+ {[%emt 0:01:14]} (38... Ba3) 39. Nxe5 {[%emt 0:00:10]} Qxe5+ {
[%emt 0:00:01]} 40. Kh3 {[%emt 0:00:30]} h5 {[%emt 0:01:01]} 41. Bf5 {[%emt 0:
14:35]} g6 {[%emt 0:04:21]} 42. Bxg6 {[%emt 0:05:33]} hxg4+ {[%emt 0:00:18]}
43. Qxg4 {[%emt 0:00:40]} Ne3 {[%emt 0:00:00]} 44. Qf4 {[%emt 0:02:09]} Qh8+ {
[%emt 0:00:55]} 45. Kg3 {[%emt 0:00:15]} d4 {[%emt 0:00:08]} 46. h4 {[%emt 0:
03:21] Weighted Error Value: White=0.37/ Black=0.71} (46. Qd6 $142 Qg7 47. Rf7
Qxf7 48. Qa3+ Kb6 49. Bxf7 Kb7 50. Qe7+ Kb6 51. Qd6+ Kb7 52. Qd7+ Kb6 53. Qxd4+
Kc7 54. Qxe3) 1-0

[Event "44th Chess Olympiad Women 2022"]
[Site "Chennai"]
[Date "2022.08.01"]
[Round "4.2"]
[White "Osmak, Yuliia"]
[Black "Antova, Gabriela"]
[Result "0-1"]
[WhiteElo "2420"]
[BlackElo "2275"]
[Annotator "TA"]
[PlyCount "69"]
[EventDate "2022.??.??"]
[TimeControl "60"]

{[%evp 9,69,16,25,23,16,18,16,22,26,-4,39,35,45,49,44,40,35,43,48,42,37,0,0,0,
0,0,0,0,0,0,0,0,45,-27,0,0,0,0,0,-8,0,-6,-4,-2,-14,-50,-50,-86,-90,-153,-59,
-165,-158,-723,-716,-727,-700,-1168,-1154,-1575,-1465,-1527]} 1. Nf3 {[%emt 0:
00:00]} d5 {[%emt 0:00:25]} 2. g3 {[%emt 0:00:11]} c6 {[%emt 0:01:17]} 3. Bg2 {
[%emt 0:00:05]} Bg4 {[%emt 0:01:09]} 4. O-O {[%emt 0:00:17]} Nf6 {[%emt 0:00:
00]} 5. h3 {[%emt 0:00:41]} Bh5 {[%emt 0:00:28]} 6. c4 {[%emt 0:02:38] A07:
Réti Opening: New York and Capablanca Systems.} e6 {[%emt 0:04:12]} 7. d4 {
[%emt 0:00:59]} Nbd7 {[%emt 0:03:27]} 8. cxd5 {[%emt 0:01:02] The position is
equal.} exd5 {[%emt 0:09:18]} 9. Ne5 {[%emt 0:01:14] is recently more
successful than 9.Qb3.} Bg6 {[%emt 0:06:06]} 10. Nc3 {[%emt 0:11:58]} Be7 {
[%emt 0:12:46]} 11. f4 {[%emt 0:10:13]} Be4 {[%emt 0:02:40]} 12. Nxe4 {[%emt 0:
00:00]} Nxe4 {[%emt 0:01:29]} 13. Bxe4 {[%emt 0:04:51]} dxe4 {[%emt 0:00:14]}
14. Qb3 {[%emt 0:02:53][%csl Ge5,Yb7,Yf7][%cal Rb3f7]} Nxe5 {[%emt 0:03:30]}
15. fxe5 {[%emt 0:00:22]} O-O {[%emt 0:04:14][%cal Yh8f8,Yf8b8,Yb8b2]} 16. Be3
{[%emt 0:02:23] [#]} Qd5 $146 {[%emt 0:04:37]} ({Predecessor:} 16... Bg5 17.
Bxg5 Qxg5 18. Rf4 c5 19. Raf1 Qe7 20. e3 Rad8 21. Rxe4 cxd4 22. exd4 Qe6 {
½-½ (35) Hakobyan,A (2554)-Arjun,K (2445) Karlsruhe 2019}) 17. Qxb7 {[%emt 0:
11:18]} Qe6 {[%emt 0:01:00]} 18. Kg2 {[%emt 0:05:46]} Rfb8 {[%emt 0:00:00]} 19.
Qa6 {[%emt 0:00:10]} Rxb2 {[%emt 0:01:14][%cal Yc6c5]} 20. Rf2 $1 {[%emt 0:00:
37]} Rc2 {[%emt 0:16:49]} 21. Qb7 {[%emt 0:14:40]} ({White should try} 21. Rc1
$1 $14 Rxc1 22. Bxc1) 21... Rf8 {[%emt 0:08:00]} 22. Rc1 {[%emt 0:00:00]} Rxc1
{[%emt 0:01:31]} 23. Bxc1 {[%emt 0:00:07]} a5 {[%emt 0:02:45]} 24. Qa7 {
[%emt 0:04:39]} Bb4 {[%emt 0:02:01]} 25. a3 {[%emt 0:04:40]} e3 $1 {[%emt 0:00:
52]} 26. Bxe3 {[%emt 0:01:38]} Qd5+ {[%emt 0:00:10]} 27. Rf3 {[%emt 0:00:59]} (
27. Kh2 $5 {[%cal Ra3b4]} Bxa3 28. Bd2 $15) 27... Bxa3 {[%emt 0:00:19]} 28. Bf2
{[%emt 0:07:22][%cal Ye2e4]} Bb4 {[%emt 0:01:43]} 29. Qb7 {[%emt 0:06:51] [#]}
(29. g4 $142) 29... h5 {[%emt 0:00:53]} ({Better is} 29... Qc4 $1 $17 30. Qa7
Qxe2) 30. Kg1 {[%emt 0:01:04] [#]} ({White should play} 30. g4 $15) 30... Qc4
$1 $19 {[%emt 0:02:10]} 31. e4 $2 {[%emt 0:01:12] White does not recover from
this.} (31. Rf4 $17) 31... a4 {[%emt 0:01:12][%cal Ya5a4,Ya4a3,Ya3a2]
Threatens to win with ...a3. Black is clearly winning.} 32. Qa7 {[%emt 0:00:51]
} a3 {[%emt 0:01:31] Hoping for ...a2.} 33. Qa4 {[%emt 0:00:33]} a2 {[%emt 0:
01:21] aiming for ...Qc1+.} 34. Kg2 {[%emt 0:00:00]} Qe2 {[%emt 0:00:33]} 35.
Rb3 {[%emt 0:00:00] Weighted Error Value: White=0.68/Black=0.07 (flawless)} 0-1